[Event "*** Titled Tuesday Blitz"]
[Site "Chess.com"]
[Date "2021.02.16"]
[Round "4"]
[White "MasterKroket"]
[Black "IAgrest"]
[Result "1-0"]
[WhiteElo "2508"]
[BlackElo "2288"]
[TimeControl "180+1"]
[EndTime "10:41:50 PST"]
[Termination "MasterKroket won on time"]

1. d4 {[%clk 0:03:00.9]} 1... Nf6 {[%clk 0:02:59.9]} 2. c4 {[%clk 0:03:00.4]}
2... g6 {[%clk 0:03:00]} 3. Nc3 {[%clk 0:03:00.4]} 3... Bg7 {[%clk 0:03:00.6]}
4. e4 {[%clk 0:02:59.8]} 4... d6 {[%clk 0:03:00.9]} 5. h3 {[%clk 0:02:59.6]}
5... O-O {[%clk 0:03:00.6]} 6. Bg5 {[%clk 0:03:00.1]} 6... Na6 {[%clk
0:03:00.6]} 7. Nf3 {[%clk 0:02:59.6]} 7... e5 {[%clk 0:03:00.3]} 8. d5 {[%clk
0:02:59.6]} 8... h6 {[%clk 0:02:54.8]} 9. Be3 {[%clk 0:02:59.3]} 9... Nh5 {[%clk
0:02:52.8]} 10. g3 {[%clk 0:02:43.6]} 10... Qe8 {[%clk 0:02:48.1]} 11. Be2
{[%clk 0:02:38.2]} 11... f5 {[%clk 0:02:42.7]} 12. exf5 {[%clk 0:02:38.4]} 12...
gxf5 {[%clk 0:02:38.2]} 13. Nxe5 {[%clk 0:02:14.2]} 13... Nxg3 {[%clk
0:02:25.6]} 14. fxg3 {[%clk 0:02:14.1]} 14... Qxe5 {[%clk 0:02:24.6]} 15. Bf4
{[%clk 0:02:14.3]} 15... Qe7 {[%clk 0:02:20.2]} 16. Qd2 {[%clk 0:02:07]} 16...
Nc5 {[%clk 0:01:52.1]} 17. O-O-O {[%clk 0:01:58.7]} 17... Qf6 {[%clk 0:01:47.2]}
18. Rdf1 {[%clk 0:01:45.8]} 18... Bd7 {[%clk 0:01:37.2]} 19. g4 {[%clk 0:01:46]}
19... Rae8 {[%clk 0:01:33.6]} 20. g5 {[%clk 0:01:41.5]} 20... hxg5 {[%clk
0:01:31.8]} 21. Bxg5 {[%clk 0:01:41.7]} 21... Qd4 {[%clk 0:01:20.6]} 22. Bh5
{[%clk 0:01:26.2]} 22... Rb8 {[%clk 0:00:25.8]} 23. Rhg1 {[%clk 0:01:21.8]}
23... Kh8 {[%clk 0:00:21.9]} 24. Be3 {[%clk 0:01:14.3]} 24... Qxd2+ {[%clk
0:00:18.7]} 25. Kxd2 {[%clk 0:01:12.5]} 25... Ne4+ {[%clk 0:00:15.7]} 26. Nxe4
{[%clk 0:01:12.2]} 26... fxe4 {[%clk 0:00:16.6]} 27. Bf7 {[%clk 0:01:03]} 27...
b5 {[%clk 0:00:14.7]} 28. c5 {[%clk 0:01:02]} 28... Bxb2 {[%clk 0:00:11.2]} 29.
Rf4 {[%clk 0:00:54]} 29... Rxf7 {[%clk 0:00:02.1]} 30. Rxf7 {[%clk 0:00:52.7]}
30... Rd8 {[%clk 0:00:01.6]} 31. c6 {[%clk 0:00:49.4]} 31... Bc8 {[%clk
0:00:01.6]} 32. Rxc7 {[%clk 0:00:45.6]} 32... a5 {[%clk 0:00:02]} 33. Bf4 {[%clk
0:00:38.7]} 33... b4 {[%clk 0:00:01.9]} 34. Bxd6 {[%clk 0:00:38.7]} 34... Rxd6
{[%clk 0:00:01.8]} 35. Rxc8+ {[%clk 0:00:39]} 35... Kh7 {[%clk 0:00:02.4]} 36.
Rc7+ {[%clk 0:00:38.5]} 36... Kh6 {[%clk 0:00:01.9]} 37. Rd7 {[%clk 0:00:39]}
37... Rf6 {[%clk 0:00:01.5]} 38. c7 {[%clk 0:00:37.8]} 38... Bc3+ {[%clk
0:00:01.4]} 39. Ke3 {[%clk 0:00:36.6]} 39... Rf8 {[%clk 0:00:01]} 40. Rd8 {[%clk
0:00:36.5]} 40... Rf3+ {[%clk 0:00:01.1]} 41. Kxe4 {[%clk 0:00:36.9]} 1-0

[Event "*** Titled Tuesday Blitz"]
[Site "Chess.com"]
[Date "2021.02.16"]
[Round "4"]
[White "LenkaPtacnikova"]
[Black "andrzej"]
[Result "1/2-1/2"]
[WhiteElo "2112"]
[BlackElo "2320"]
[TimeControl "180+1"]
[EndTime "10:41:50 PST"]
[Termination "Game drawn by repetition"]

1. e4 {[%clk 0:03:00.2]} 1... c5 {[%clk 0:03:00]} 2. Nf3 {[%clk 0:02:59.3]} 2...
e6 {[%clk 0:03:00.4]} 3. d4 {[%clk 0:02:59.3]} 3... cxd4 {[%clk 0:03:01.3]} 4.
Nxd4 {[%clk 0:02:58.9]} 4... Nf6 {[%clk 0:03:01.9]} 5. Bd3 {[%clk 0:02:57]} 5...
Nc6 {[%clk 0:03:01.2]} 6. Nxc6 {[%clk 0:02:55]} 6... bxc6 {[%clk 0:03:02.1]} 7.
c4 {[%clk 0:02:50.4]} 7... Bb4+ {[%clk 0:02:55.1]} 8. Bd2 {[%clk 0:02:49]} 8...
a5 {[%clk 0:02:35.4]} 9. e5 {[%clk 0:02:40.3]} 9... Ng8 {[%clk 0:02:35]} 10. O-O
{[%clk 0:02:34.1]} 10... Ne7 {[%clk 0:02:33.6]} 11. Nc3 {[%clk 0:02:29.6]} 11...
Ng6 {[%clk 0:02:28.8]} 12. f4 {[%clk 0:02:25.9]} 12... Rb8 {[%clk 0:02:16.3]}
13. b3 {[%clk 0:02:17.1]} 13... Qb6+ {[%clk 0:02:11.2]} 14. Kh1 {[%clk
0:02:14.1]} 14... Qd4 {[%clk 0:02:11.7]} 15. Bxg6 {[%clk 0:01:44]} 15... hxg6
{[%clk 0:02:11.1]} 16. Rc1 {[%clk 0:01:39.2]} 16... Bb7 {[%clk 0:01:52.5]} 17.
Qe2 {[%clk 0:01:34.9]} 17... Bxc3 {[%clk 0:01:26.4]} 18. Bxc3 {[%clk 0:01:32.9]}
18... Qb6 {[%clk 0:01:17.9]} 19. Qf2 {[%clk 0:01:29.8]} 19... c5 {[%clk
0:01:06.4]} 20. Rfd1 {[%clk 0:01:00.3]} 20... Bc6 {[%clk 0:00:59]} 21. Rd6
{[%clk 0:00:55.3]} 21... Ke7 {[%clk 0:00:48.5]} 22. Rcd1 {[%clk 0:00:51.9]}
22... Rh3 {[%clk 0:00:38.6]} 23. R6d3 {[%clk 0:00:42.6]} 23... Rbh8 {[%clk
0:00:34.7]} 24. Rxh3 {[%clk 0:00:39.4]} 24... Rxh3 {[%clk 0:00:35.6]} 25. Bd2
{[%clk 0:00:20.4]} 25... Rh5 {[%clk 0:00:28.8]} 26. Be3 {[%clk 0:00:20.1]} 26...
Qb7 {[%clk 0:00:26.6]} 27. Bxc5+ {[%clk 0:00:19.8]} 27... Ke8 {[%clk 0:00:27.2]}
28. Kg1 {[%clk 0:00:19.8]} 28... g5 {[%clk 0:00:19.6]} 29. Rd2 {[%clk 0:00:17]}
29... gxf4 {[%clk 0:00:19.3]} 30. Qxf4 {[%clk 0:00:16.6]} 30... Rf5 {[%clk
0:00:19.9]} 31. Qd4 {[%clk 0:00:16.2]} 31... Qc7 {[%clk 0:00:14.8]} 32. Bd6
{[%clk 0:00:14.1]} 32... Qb7 {[%clk 0:00:14.3]} 33. Bc5 {[%clk 0:00:13.5]} 33...
Qc7 {[%clk 0:00:14.4]} 34. Bd6 {[%clk 0:00:13.6]} 34... Qb7 {[%clk 0:00:14.6]}
35. Bc5 {[%clk 0:00:10.7]} 1/2-1/2

[Event "*** Titled Tuesday Blitz"]
[Site "Chess.com"]
[Date "2021.02.16"]
[Round "4"]
[White "IceBelka"]
[Black "Nbk90"]
[Result "1-0"]
[WhiteElo "2408"]
[BlackElo "2554"]
[TimeControl "180+1"]
[EndTime "10:41:51 PST"]
[Termination "IceBelka won on time"]

1. e4 {[%clk 0:03:00.9]} 1... d6 {[%clk 0:03:00.9]} 2. d4 {[%clk 0:03:00.3]}
2... Nf6 {[%clk 0:03:01.3]} 3. Nc3 {[%clk 0:03:00.2]} 3... g6 {[%clk 0:03:01.9]}
4. Be3 {[%clk 0:03:00.2]} 4... a6 {[%clk 0:03:02]} 5. Qd2 {[%clk 0:02:54.8]}
5... b5 {[%clk 0:03:01.8]} 6. Bd3 {[%clk 0:02:50.8]} 6... Bb7 {[%clk 0:03:00.9]}
7. f3 {[%clk 0:02:48.9]} 7... Nbd7 {[%clk 0:03:01.5]} 8. h4 {[%clk 0:02:45.8]}
8... h5 {[%clk 0:03:00.4]} 9. Nh3 {[%clk 0:02:44.3]} 9... c5 {[%clk 0:02:59.4]}
10. Ng5 {[%clk 0:02:33.7]} 10... cxd4 {[%clk 0:02:52.2]} 11. Bxd4 {[%clk
0:02:29.8]} 11... Bg7 {[%clk 0:02:51.6]} 12. O-O-O {[%clk 0:02:09.9]} 12... e5
{[%clk 0:02:17]} 13. Be3 {[%clk 0:02:08.5]} 13... b4 {[%clk 0:02:17.6]} 14. Ne2
{[%clk 0:01:57]} 14... d5 {[%clk 0:02:02.7]} 15. exd5 {[%clk 0:01:50]} 15... O-O
{[%clk 0:01:46.1]} 16. d6 {[%clk 0:01:42.3]} 16... a5 {[%clk 0:01:31.8]} 17. Kb1
{[%clk 0:01:13.7]} 17... Nd5 {[%clk 0:01:21.3]} 18. Be4 {[%clk 0:01:11.3]} 18...
N7f6 {[%clk 0:01:17]} 19. Bxd5 {[%clk 0:00:45.6]} 19... Nxd5 {[%clk 0:01:17.9]}
20. Ne4 {[%clk 0:00:45.5]} 20... Bc6 {[%clk 0:00:46.2]} 21. Bh6 {[%clk
0:00:43.7]} 21... a4 {[%clk 0:00:41]} 22. g4 {[%clk 0:00:40.1]} 22... hxg4
{[%clk 0:00:29.2]} 23. h5 {[%clk 0:00:40]} 23... gxf3 {[%clk 0:00:20.9]} 24.
Bxg7 {[%clk 0:00:34.5]} 24... Kxg7 {[%clk 0:00:10.8]} 25. hxg6 {[%clk 0:00:34]}
25... Rh8 {[%clk 0:00:11]} 26. N2g3 {[%clk 0:00:29.4]} 26... Nf4 {[%clk
0:00:07.8]} 27. Nf5+ {[%clk 0:00:22.9]} 27... Kxg6 {[%clk 0:00:08.1]} 28. Ne7+
{[%clk 0:00:23]} 28... Kg7 {[%clk 0:00:05.9]} 29. Rdg1+ {[%clk 0:00:23.2]} 29...
Ng6 {[%clk 0:00:06.4]} 30. Nf5+ {[%clk 0:00:15.7]} 1-0

[Event "*** Titled Tuesday Blitz"]
[Site "Chess.com"]
[Date "2021.02.16"]
[Round "4"]
[White "onnoelgersma"]
[Black "Ajedrez_con_German"]
[Result "1-0"]
[WhiteElo "2446"]
[BlackElo "2608"]
[TimeControl "180+1"]
[EndTime "10:41:52 PST"]
[Termination "onnoelgersma won by checkmate"]

1. e4 {[%clk 0:03:00.9]} 1... e6 {[%clk 0:02:59.7]} 2. Nf3 {[%clk 0:03:01.1]}
2... d5 {[%clk 0:02:57.5]} 3. Nc3 {[%clk 0:03:01.5]} 3... dxe4 {[%clk
0:02:57.4]} 4. Nxe4 {[%clk 0:03:00.6]} 4... Nd7 {[%clk 0:02:58.3]} 5. g3 {[%clk
0:03:00.2]} 5... Be7 {[%clk 0:02:56.9]} 6. Bg2 {[%clk 0:02:59.5]} 6... Ngf6
{[%clk 0:02:57.3]} 7. Qe2 {[%clk 0:02:59.8]} 7... O-O {[%clk 0:02:55.3]} 8. O-O
{[%clk 0:02:59.1]} 8... c6 {[%clk 0:02:49.5]} 9. Rd1 {[%clk 0:02:58.8]} 9...
Nxe4 {[%clk 0:02:48]} 10. Qxe4 {[%clk 0:02:58.6]} 10... Bf6 {[%clk 0:02:48.9]}
11. d4 {[%clk 0:02:58.3]} 11... Re8 {[%clk 0:02:49]} 12. c4 {[%clk 0:02:57.8]}
12... Qa5 {[%clk 0:02:43.6]} 13. Bf4 {[%clk 0:02:56.9]} 13... Nf8 {[%clk
0:02:22.7]} 14. a3 {[%clk 0:02:51.9]} 14... Ng6 {[%clk 0:02:22.1]} 15. Be3
{[%clk 0:02:45.9]} 15... e5 {[%clk 0:02:15.3]} 16. b4 {[%clk 0:02:41.4]} 16...
Qc7 {[%clk 0:02:10.5]} 17. d5 {[%clk 0:02:40.6]} 17... Be7 {[%clk 0:01:48.7]}
18. g4 {[%clk 0:01:26]} 18... Rf8 {[%clk 0:01:48.3]} 19. g5 {[%clk 0:01:04.3]}
19... f5 {[%clk 0:01:41]} 20. gxf6 {[%clk 0:01:05.2]} 20... gxf6 {[%clk
0:01:40.7]} 21. dxc6 {[%clk 0:00:51.2]} 21... bxc6 {[%clk 0:01:39.2]} 22. Nh4
{[%clk 0:00:50.7]} 22... f5 {[%clk 0:00:58.1]} 23. Qxc6 {[%clk 0:00:48.8]} 23...
Qxc6 {[%clk 0:00:58.1]} 24. Bxc6 {[%clk 0:00:48.4]} 24... Nxh4 {[%clk
0:00:57.3]} 25. Bxa8 {[%clk 0:00:47.7]} 25... f4 {[%clk 0:00:55.9]} 26. Bc5
{[%clk 0:00:42]} 26... Bxc5 {[%clk 0:00:53.2]} 27. bxc5 {[%clk 0:00:42.9]} 27...
Bg4 {[%clk 0:00:39.9]} 28. Bd5+ {[%clk 0:00:42.2]} 28... Kg7 {[%clk 0:00:36.7]}
29. c6 {[%clk 0:00:40.4]} 29... Bxd1 {[%clk 0:00:22.1]} 30. Rxd1 {[%clk
0:00:41.3]} 30... Rc8 {[%clk 0:00:22.1]} 31. Rb1 {[%clk 0:00:40.9]} 31... Nf5
{[%clk 0:00:19.1]} 32. Be6 {[%clk 0:00:28.3]} 32... Rxc6 {[%clk 0:00:17.6]} 33.
Bxf5 {[%clk 0:00:27.9]} 33... Rxc4 {[%clk 0:00:17.9]} 34. Rb7+ {[%clk 0:00:28]}
34... Kf6 {[%clk 0:00:18.1]} 35. Bxh7 {[%clk 0:00:27.7]} 35... f3 {[%clk
0:00:16.8]} 36. h3 {[%clk 0:00:27.2]} 36... Rc1+ {[%clk 0:00:14.3]} 37. Kh2
{[%clk 0:00:27.1]} 37... Kg5 {[%clk 0:00:14.3]} 38. Kg3 {[%clk 0:00:24.8]} 38...
Rc3 {[%clk 0:00:12.8]} 39. h4+ {[%clk 0:00:22.9]} 39... Kh6 {[%clk 0:00:12.9]}
40. Be4 {[%clk 0:00:22.7]} 40... Rxa3 {[%clk 0:00:12.9]} 41. Rh7# {[%clk
0:00:22.5]} 1-0

[Event "*** Titled Tuesday Blitz"]
[Site "Chess.com"]
[Date "2021.02.16"]
[Round "4"]
[White "anskam"]
[Black "Hangar-18"]
[Result "0-1"]
[WhiteElo "1719"]
[BlackElo "2381"]
[TimeControl "180+1"]
[EndTime "10:41:52 PST"]
[Termination "Hangar-18 won by checkmate"]

1. e4 {[%clk 0:03:00.7]} 1... c6 {[%clk 0:02:59.8]} 2. d4 {[%clk 0:03:00]} 2...
d5 {[%clk 0:03:00.7]} 3. Nc3 {[%clk 0:02:59.5]} 3... dxe4 {[%clk 0:02:59.3]} 4.
Nxe4 {[%clk 0:02:58.9]} 4... Bf5 {[%clk 0:02:59.7]} 5. Ng3 {[%clk 0:02:58.1]}
5... Bg6 {[%clk 0:02:59.8]} 6. Nf3 {[%clk 0:02:58.3]} 6... Nd7 {[%clk
0:02:59.1]} 7. h4 {[%clk 0:02:58]} 7... h6 {[%clk 0:02:58.6]} 8. h5 {[%clk
0:02:57.5]} 8... Bh7 {[%clk 0:02:58.8]} 9. Bd3 {[%clk 0:02:57.4]} 9... Bxd3
{[%clk 0:02:59.1]} 10. Qxd3 {[%clk 0:02:57.4]} 10... e6 {[%clk 0:02:58.8]} 11.
c3 {[%clk 0:02:56.7]} 11... Ngf6 {[%clk 0:02:56.4]} 12. Bf4 {[%clk 0:02:52.2]}
12... Qa5 {[%clk 0:02:54.9]} 13. a3 {[%clk 0:02:46.7]} 13... Qa4 {[%clk
0:02:50]} 14. O-O {[%clk 0:02:33.9]} 14... Be7 {[%clk 0:02:47.5]} 15. Ne5 {[%clk
0:02:32.4]} 15... O-O {[%clk 0:02:38.5]} 16. c4 {[%clk 0:02:19.3]} 16... Rad8
{[%clk 0:02:35.9]} 17. b3 {[%clk 0:02:18.4]} 17... Qa5 {[%clk 0:02:24.9]} 18. b4
{[%clk 0:02:07.5]} 18... Nxe5 {[%clk 0:02:23.5]} 19. Bxe5 {[%clk 0:01:54.1]}
19... Qxe5 {[%clk 0:02:22.3]} 20. dxe5 {[%clk 0:01:53.9]} 20... Rxd3 {[%clk
0:02:22.1]} 21. exf6 {[%clk 0:01:53.6]} 21... Bxf6 {[%clk 0:02:22.4]} 22. Ra2
{[%clk 0:01:53.2]} 22... Bd4 {[%clk 0:02:06.7]} 23. c5 {[%clk 0:01:45]} 23...
Rxg3 {[%clk 0:02:04.7]} 24. Rd2 {[%clk 0:01:40.4]} 24... Rg4 {[%clk 0:02:01.7]}
25. Rfd1 {[%clk 0:01:34.3]} 25... e5 {[%clk 0:01:59.3]} 26. Kf1 {[%clk
0:01:30.7]} 26... Rg5 {[%clk 0:01:57.7]} 27. f4 {[%clk 0:01:23.4]} 27... Rf5
{[%clk 0:01:53.7]} 28. g3 {[%clk 0:01:20.8]} 28... Rxh5 {[%clk 0:01:39.8]} 29.
fxe5 {[%clk 0:01:18.9]} 29... Rh1+ {[%clk 0:01:39.1]} 30. Kg2 {[%clk 0:01:17.6]}
30... Rxd1 {[%clk 0:01:39.2]} 31. Rxd1 {[%clk 0:01:16.9]} 31... Bxe5 {[%clk
0:01:39.5]} 32. Rd7 {[%clk 0:01:16.1]} 32... Rb8 {[%clk 0:01:38.8]} 33. Kf3
{[%clk 0:01:15.7]} 33... Kf8 {[%clk 0:01:38.2]} 34. g4 {[%clk 0:01:15.2]} 34...
Ke8 {[%clk 0:01:38]} 35. Rd3 {[%clk 0:01:12]} 35... Ke7 {[%clk 0:01:36.2]} 36.
Ke4 {[%clk 0:01:11.4]} 36... f6 {[%clk 0:01:33.9]} 37. Kf5 {[%clk 0:01:08.7]}
37... Rd8 {[%clk 0:01:33.6]} 38. Re3 {[%clk 0:01:04.9]} 38... Kf7 {[%clk
0:01:32]} 39. Ke4 {[%clk 0:00:54.2]} 39... Rd4+ {[%clk 0:01:31.4]} 40. Kf3
{[%clk 0:00:50.5]} 40... Rc4 {[%clk 0:01:31.4]} 41. Re4 {[%clk 0:00:41.8]} 41...
Rxe4 {[%clk 0:01:30.8]} 42. Kxe4 {[%clk 0:00:40.4]} 42... Ke6 {[%clk 0:01:31.6]}
43. a4 {[%clk 0:00:38.9]} 43... g6 {[%clk 0:01:31.4]} 44. b5 {[%clk 0:00:37.3]}
44... cxb5 {[%clk 0:01:30.8]} 45. axb5 {[%clk 0:00:36.6]} 45... f5+ {[%clk
0:01:31.7]} 46. gxf5+ {[%clk 0:00:35.7]} 46... gxf5+ {[%clk 0:01:32.6]} 47. Kf3
{[%clk 0:00:31.7]} 47... Kd5 {[%clk 0:01:32.7]} 48. c6 {[%clk 0:00:31.2]} 48...
bxc6 {[%clk 0:01:32.4]} 49. bxc6 {[%clk 0:00:30.5]} 49... Kxc6 {[%clk
0:01:32.4]} 50. Ke3 {[%clk 0:00:30.2]} 50... a5 {[%clk 0:01:31.6]} 51. Kd3
{[%clk 0:00:29.8]} 51... a4 {[%clk 0:01:32.5]} 52. Kc4 {[%clk 0:00:29.3]} 52...
f4 {[%clk 0:01:32.5]} 53. Kb4 {[%clk 0:00:28.7]} 53... f3 {[%clk 0:01:32.8]} 54.
Kxa4 {[%clk 0:00:28.5]} 54... f2 {[%clk 0:01:33.7]} 55. Kb3 {[%clk 0:00:27.9]}
55... f1=Q {[%clk 0:01:34]} 56. Kb4 {[%clk 0:00:26.5]} 56... Qf4+ {[%clk
0:01:31.4]} 57. Kb3 {[%clk 0:00:25.1]} 57... Kc5 {[%clk 0:01:28.4]} 58. Kc2
{[%clk 0:00:24.2]} 58... Kc4 {[%clk 0:01:26.4]} 59. Kd1 {[%clk 0:00:23.2]} 59...
Qf2 {[%clk 0:01:25.2]} 60. Kc1 {[%clk 0:00:21.9]} 60... Kc3 {[%clk 0:01:21.1]}
61. Kd1 {[%clk 0:00:21.2]} 61... Qd2# {[%clk 0:01:20.9]} 0-1

[Event "*** Titled Tuesday Blitz"]
[Site "Chess.com"]
[Date "2021.02.16"]
[Round "4"]
[White "tteshan"]
[Black "Er_is_geen_hoop_meer"]
[Result "1-0"]
[WhiteElo "2342"]
[BlackElo "2438"]
[TimeControl "180+1"]
[EndTime "10:41:53 PST"]
[Termination "tteshan won by checkmate"]

1. d4 {[%clk 0:03:00.9]} 1... Nf6 {[%clk 0:02:59.5]} 2. c4 {[%clk 0:03:01]} 2...
e6 {[%clk 0:02:59.5]} 3. Nc3 {[%clk 0:03:01.4]} 3... Bb4 {[%clk 0:02:59.3]} 4.
e3 {[%clk 0:03:01.7]} 4... O-O {[%clk 0:02:58.7]} 5. Bd3 {[%clk 0:03:01.4]} 5...
c5 {[%clk 0:02:58.3]} 6. a3 {[%clk 0:03:00.9]} 6... Bxc3+ {[%clk 0:02:57.8]} 7.
bxc3 {[%clk 0:03:01.8]} 7... d5 {[%clk 0:02:54.1]} 8. Ne2 {[%clk 0:02:59.8]}
8... Nc6 {[%clk 0:02:40.6]} 9. O-O {[%clk 0:02:58.4]} 9... b6 {[%clk 0:02:23.2]}
10. cxd5 {[%clk 0:02:48.7]} 10... exd5 {[%clk 0:02:12.5]} 11. Ng3 {[%clk
0:02:40.6]} 11... c4 {[%clk 0:02:04]} 12. Bc2 {[%clk 0:02:39.3]} 12... Bb7
{[%clk 0:01:42.4]} 13. a4 {[%clk 0:02:37.2]} 13... Re8 {[%clk 0:01:35.8]} 14.
Ba3 {[%clk 0:02:36.3]} 14... g6 {[%clk 0:01:33.3]} 15. h4 {[%clk 0:02:34]} 15...
h5 {[%clk 0:01:31.3]} 16. Ne2 {[%clk 0:02:24.2]} 16... Kg7 {[%clk 0:01:30.5]}
17. Nf4 {[%clk 0:02:23.9]} 17... Ne4 {[%clk 0:01:22.5]} 18. Bxe4 {[%clk
0:02:16.3]} 18... Rxe4 {[%clk 0:01:20.7]} 19. g3 {[%clk 0:02:12.4]} 19... Ne7
{[%clk 0:01:20.2]} 20. a5 {[%clk 0:01:51.9]} 20... bxa5 {[%clk 0:01:16.4]} 21.
Bc5 {[%clk 0:01:37]} 21... Nf5 {[%clk 0:01:10]} 22. Ng2 {[%clk 0:01:33.8]} 22...
Bc6 {[%clk 0:00:58.5]} 23. Qc1 {[%clk 0:01:30.5]} 23... a6 {[%clk 0:00:52.4]}
24. Qa3 {[%clk 0:01:30.2]} 24... a4 {[%clk 0:00:49.9]} 25. Rfb1 {[%clk
0:01:11.6]} 25... Bb5 {[%clk 0:00:49.6]} 26. Qc1 {[%clk 0:01:02]} 26... Qd7
{[%clk 0:00:49.2]} 27. f3 {[%clk 0:00:53.7]} 27... Re6 {[%clk 0:00:45.8]} 28.
Kf2 {[%clk 0:00:44.9]} 28... Rae8 {[%clk 0:00:43.9]} 29. Rb2 {[%clk 0:00:42.6]}
29... Nxe3 {[%clk 0:00:42]} 30. Nxe3 {[%clk 0:00:42]} 30... Rxe3 {[%clk
0:00:41.8]} 31. Qxe3 {[%clk 0:00:41.8]} 31... Rxe3 {[%clk 0:00:42.3]} 32. Kxe3
{[%clk 0:00:42.7]} 32... Qh3 {[%clk 0:00:40.8]} 33. Rg1 {[%clk 0:00:40]} 33...
Qf5 {[%clk 0:00:40.2]} 34. Kf2 {[%clk 0:00:38.4]} 34... Qd3 {[%clk 0:00:38.9]}
35. Rc1 {[%clk 0:00:36.2]} 35... Bd7 {[%clk 0:00:32.4]} 36. Bd6 {[%clk
0:00:33.3]} 36... Bh3 {[%clk 0:00:31.6]} 37. Be5+ {[%clk 0:00:30.1]} 37... f6
{[%clk 0:00:28.8]} 38. Rb7+ {[%clk 0:00:29.5]} 38... Kf8 {[%clk 0:00:28.5]} 39.
Bf4 {[%clk 0:00:28.6]} 39... a3 {[%clk 0:00:22.9]} 40. Re1 {[%clk 0:00:22.8]}
40... Qc2+ {[%clk 0:00:20.5]} 41. Re2 {[%clk 0:00:22.8]} 41... Qxc3 {[%clk
0:00:19.3]} 42. Bh6+ {[%clk 0:00:22.3]} 42... Kg8 {[%clk 0:00:16.8]} 43. Re8#
{[%clk 0:00:22.5]} 1-0

[Event "*** Titled Tuesday Blitz"]
[Site "Chess.com"]
[Date "2021.02.16"]
[Round "4"]
[White "beto-betun"]
[Black "thechesscorner64"]
[Result "0-1"]
[WhiteElo "2191"]
[BlackElo "2421"]
[TimeControl "180+1"]
[EndTime "10:41:54 PST"]
[Termination "thechesscorner64 won by resignation"]

1. d4 {[%clk 0:03:00.9]} 1... Nf6 {[%clk 0:02:59.7]} 2. Nf3 {[%clk 0:03:01.3]}
2... e6 {[%clk 0:03:00.1]} 3. g3 {[%clk 0:03:01.8]} 3... b6 {[%clk 0:03:00.4]}
4. Bg2 {[%clk 0:03:02.4]} 4... Bb7 {[%clk 0:03:01.1]} 5. O-O {[%clk 0:03:02.8]}
5... c5 {[%clk 0:03:01]} 6. c4 {[%clk 0:03:00.4]} 6... cxd4 {[%clk 0:02:59.9]}
7. Nxd4 {[%clk 0:03:01.3]} 7... Bxg2 {[%clk 0:02:59.4]} 8. Kxg2 {[%clk
0:03:02.2]} 8... Qc7 {[%clk 0:02:59.1]} 9. b3 {[%clk 0:02:59.1]} 9... Be7 {[%clk
0:02:58.5]} 10. Bb2 {[%clk 0:02:59.1]} 10... O-O {[%clk 0:02:58.9]} 11. Nd2
{[%clk 0:02:54.2]} 11... d6 {[%clk 0:02:58]} 12. Rc1 {[%clk 0:02:40.8]} 12...
Nbd7 {[%clk 0:02:57.1]} 13. N2f3 {[%clk 0:02:37]} 13... Ne5 {[%clk 0:02:44.9]}
14. Nb5 {[%clk 0:02:32.2]} 14... Qb8 {[%clk 0:02:44.1]} 15. Nxe5 {[%clk
0:02:29.1]} 15... dxe5 {[%clk 0:02:44.1]} 16. Qc2 {[%clk 0:02:24.9]} 16... a6
{[%clk 0:02:34]} 17. Nc3 {[%clk 0:02:23.7]} 17... Qb7+ {[%clk 0:02:33.7]} 18.
Kg1 {[%clk 0:02:23.1]} 18... Rfd8 {[%clk 0:02:28.9]} 19. Rcd1 {[%clk 0:02:22.5]}
19... h6 {[%clk 0:02:27.1]} 20. Rd2 {[%clk 0:01:43.3]} 20... Rxd2 {[%clk
0:02:25.4]} 21. Qxd2 {[%clk 0:01:44.2]} 21... b5 {[%clk 0:02:21.4]} 22. cxb5
{[%clk 0:01:40.8]} 22... axb5 {[%clk 0:02:22.3]} 23. Rd1 {[%clk 0:01:35.1]}
23... Rd8 {[%clk 0:02:13.7]} 24. Qc2 {[%clk 0:01:31.9]} 24... Rc8 {[%clk
0:02:12.4]} 25. Qd2 {[%clk 0:01:28.9]} 25... Bb4 {[%clk 0:02:05.5]} 26. a3
{[%clk 0:01:29.3]} 26... Ne4 {[%clk 0:02:02.5]} 27. axb4 {[%clk 0:01:14.2]}
27... Nxd2 {[%clk 0:01:59.3]} 28. Rxd2 {[%clk 0:01:15.1]} 28... Qc6 {[%clk
0:01:46]} 29. f3 {[%clk 0:01:07.3]} 29... f6 {[%clk 0:01:45.3]} 30. Kg2 {[%clk
0:01:05.9]} 30... Kh7 {[%clk 0:01:41.6]} 31. Ne4 {[%clk 0:01:00.2]} 31... Ra8
{[%clk 0:01:28.2]} 32. Nc5 {[%clk 0:00:53.5]} 32... Ra2 {[%clk 0:01:23.1]} 33.
Kf2 {[%clk 0:00:48.7]} 33... Qe8 {[%clk 0:01:10.8]} 34. h4 {[%clk 0:00:31.1]}
34... Qg6 {[%clk 0:00:50.5]} 35. Ne4 {[%clk 0:00:25.8]} 35... f5 {[%clk
0:00:40.5]} 36. Nc5 {[%clk 0:00:25.9]} 36... f4 {[%clk 0:00:30.1]} 37. g4 {[%clk
0:00:26.1]} 37... Qb1 {[%clk 0:00:27.2]} 38. Ne4 {[%clk 0:00:25.7]} 38... Rxb2
{[%clk 0:00:24.5]} 39. Rxb2 {[%clk 0:00:24.4]} 39... Qxb2 {[%clk 0:00:24.3]} 40.
g5 {[%clk 0:00:25.3]} 40... hxg5 {[%clk 0:00:23.7]} 41. Nxg5+ {[%clk 0:00:25.5]}
41... Kg6 {[%clk 0:00:23.3]} 42. Nxe6 {[%clk 0:00:24.4]} 42... Qxb3 {[%clk
0:00:22.5]} 43. Nc5 {[%clk 0:00:22.4]} 43... Qxb4 {[%clk 0:00:20.5]} 44. Ne4
{[%clk 0:00:23.3]} 44... Qd4+ {[%clk 0:00:20.3]} 45. Kg2 {[%clk 0:00:23.1]}
45... b4 {[%clk 0:00:20.5]} 46. h5+ {[%clk 0:00:22.9]} 46... Kxh5 {[%clk
0:00:19.7]} 0-1